[Event "3rd FIDE WCCC Blitz U12 2019"]
[Site "Minsk"]
[Date "2019.08.18"]
[Round "8.1"]
[White "Strybuk, Artsiom I"]
[Black "Chyndygyr, Tamerlan"]
[Result "1-0"]
[ECO "D30"]
[WhiteElo "2200"]
[BlackElo "1984"]
[Annotator "ChessBase"]
[PlyCount "121"]
[EventDate "2019.08.18"]
[EventType "swiss"]
[EventCountry "BLR"]
[SourceTitle "playchess.com"]
[Source "ChessBase"]
[SourceQuality "1"]
[TimeControl "300+2"]

1. d4 {[%emt 0:00:00]} d5 {[%emt 0:00:00]} 2. c4 {[%emt 0:00:01]} e6 {[%emt 0:00:00]} 3. g3 {[%emt 0:00:04]} c6 {[%emt 0:00:01]} 4. Nf3 {[%emt 0:00:02]} Nf6 {[%emt 0:00:01]} 5. Bg2 {[%emt 0:00:02]} dxc4 {[%emt 0:00:04]} 6. Ne5 {[%emt 0:00:05]} Nbd7 {[%emt 0:00:07]} 7. Nxc4 {[%emt 0:00:01]} Be7 {[%emt 0:00:02]} 8. O-O {[%emt 0:00:03]} O-O {[%emt 0:00:01]} 9. Nc3 {[%emt 0:00:02]} c5 {[%emt 0:00:06]} 10. dxc5 {[%emt 0:00:35]} Nxc5 {[%emt 0:00:02]} 11. Bf4 {[%emt 0:00:08]} Bd7 {[%emt 0:00:26]} 12. b4 {[%emt 0:00:56]} Na6 {[%emt 0:00:01]} 13. Bxb7 {[%emt 0:00:02]} Bxb4 {[%emt 0:00:17]} 14. Bxa6 {[%emt 0:00:39]} Bxc3 {[%emt 0:00:07]} 15. Rc1 {[%emt 0:00:01]} Bb4 {[%emt 0:00:23]} 16. Bb7 {[%emt 0:00:05]} Nd5 {[%emt 0:00:12]} 17. Bxa8 Qxa8 {[%emt 0:00:01]} 18. Bd6 {[%emt 0:00:23]} Bxd6 19. Nxd6 {[%emt 0:00:02]} Bc6 {[%emt 0:00:23]} 20. Qc2 {[%emt 0:00:18]} Bd7 {[%emt 0:00:13]} 21. Rfd1 {[%emt 0:00:23]} Qb8 {[%emt 0:00:05]} 22. Nc4 {[%emt 0:00:10]} Rc8 {[%emt 0:00:18]} 23. Qd2 {[%emt 0:00:03]} Bb5 {[%emt 0:00:03]} 24. Ne3 {[%emt 0:00:03]} Rxc1 {[%emt 0:00:06]} 25. Rxc1 {[%emt 0:00:06]} Nf6 {[%emt 0:00:09]} 26. Qb4 {[%emt 0:00:14]} Qe8 {[%emt 0:00:04]} 27. Qc3 {[%emt 0:00:30]} Bd7 {[%emt 0:00:18]} 28. Qc7 {[%emt 0:00:03]} a6 {[%emt 0:00:02]} 29. Rb1 {[%emt 0:00:03]} Qe7 {[%emt 0:00:08]} 30. Rb8+ {[%emt 0:00:05]} Ne8 {[%emt 0:00:01]} 31. Nc4 {[%emt 0:00:20]} Kf8 {[%emt 0:00:07]} 32. Nd6 {[%emt 0:00:04]} f6 {[%emt 0:00:08]} 33. Nxe8 {[%emt 0:00:06]} Bxe8 {[%emt 0:00:01]} 34. Qxe7+ {[%emt 0:00:08]} Kxe7 {[%emt 0:00:01]} 35. Rb7+ {[%emt 0:00:01]} Kf8 {[%emt 0:00:02]} 36. Rb6 {[%emt 0:00:02]} Bb5 {[%emt 0:00:03]} 37. Rxe6 {[%emt 0:00:01]} Kf7 {[%emt 0:00:00]} 38. Re3 {[%emt 0:00:02]} h5 {[%emt 0:00:01]} 39. Kf1 {[%emt 0:00:01]} g5 {[%emt 0:00:03]} 40. h4 {[%emt 0:00:02]} Kg6 {[%emt 0:00:00]} 41. Ke1 {[%emt 0:00:01]} Kf5 {[%emt 0:00:02]} 42. Kd2 {[%emt 0:00:03]} gxh4 {[%emt 0:00:01]} 43. gxh4 {[%emt 0:00:00]} Kg4 {[%emt 0:00:02]} 44. Re4+ {[%emt 0:00:01]} Kf5 {[%emt 0:00:01]} 45. f3 {[%emt 0:00:01]} Bc6 {[%emt 0:00:03]} 46. Rd4 {[%emt 0:00:01]} Ke5 {[%emt 0:00:01]} 47. Ke3 {[%emt 0:00:01]} f5 {[%emt 0:00:02]} 48. Rd8 {[%emt 0:00:04]} f4+ {[%emt 0:00:01]} 49. Kd2 {[%emt 0:00:02]} Kf5 {[%emt 0:00:01]} 50. Rd4 {[%emt 0:00:05]} Ke5 {[%emt 0:00:01]} 51. Rb4 {[%emt 0:00:01]} Kf5 {[%emt 0:00:11]} 52. a4 {[%emt 0:00:01]} Ke5 {[%emt 0:00:09]} 53. a5 {[%emt 0:00:02]} Bb5 {[%emt 0:00:04]} 54. Rxb5+ {[%emt 0:00:04]} axb5 {[%emt 0:00:00]} 55. Kc3 {[%emt 0:00:01]} Kd6 56. Kb4 {[%emt 0:00:01]} Kc6 {[%emt 0:00:02]} 57. a6 {[%emt 0:00:02]} Kb6 {[%emt 0:00:01]} 58. a7 {[%emt 0:00:00]} Kxa7 {[%emt 0:00:00]} 59. Kxb5 Kb7 60. Kc5 {[%emt 0:00:02]} Kc7 {[%emt 0:00:01]} 61. Kd5 {[%emt 0:00:00]} 1-0

[Event "3rd FIDE WCCC Blitz U12 2019"]
[Site "Minsk"]
[Date "2019.08.18"]
[Round "8.2"]
[White "Kolesov, Gordey"]
[Black "Mochalov, Dmitriy"]
[Result "0-1"]
[ECO "E68"]
[WhiteElo "1761"]
[BlackElo "1852"]
[Annotator "NA"]
[PlyCount "194"]
[EventDate "2019.08.18"]
[EventType "swiss"]
[EventCountry "BLR"]
[SourceTitle "playchess.com"]
[Source "ChessBase"]
[SourceQuality "1"]
[TimeControl "300+2"]

1. d4 {[%emt 0:00:00]} Nf6 {[%emt 0:00:01]} 2. Nf3 {[%emt 0:00:00]} g6 {[%emt 0:00:01]} 3. g3 {[%emt 0:00:01]} Bg7 {[%emt 0:00:00]} 4. Bg2 {[%emt 0:00:01]} O-O {[%emt 0:00:03]} 5. O-O {[%emt 0:00:01]} d6 {[%emt 0:00:04]} 6. c4 {[%emt 0:00:01]} Nbd7 {[%emt 0:00:01]} 7. Nc3 {[%emt 0:00:01]} e5 {[%emt 0:00:01]} 8. e4 {[%emt 0:00:02]} a5 {[%emt 0:00:03]} 9. h3 {[%emt 0:00:04]} Re8 {[%emt 0:00:01]} 10. Re1 {[%emt 0:00:06]} c6 {[%emt 0:00:02]} 11. Be3 {[%emt 0:00:04]} Qe7 {[%emt 0:00:03]} 12. Qc2 {[%emt 0:00:05]} exd4 {[%emt 0:00:02]} 13. Nxd4 {[%emt 0:00:02]} Nc5 {[%emt 0:00:01]} 14. Bg5 {[%emt 0:00:46]} h6 {[%emt 0:00:03]} 15. Bxf6 {[%emt 0:00:02]} Qxf6 {[%emt 0:00:05]} 16. Rad1 {[%emt 0:00:06]} Qe7 {[%emt 0:00:07]} 17. b3 {[%emt 0:00:04]} h5 {[%emt 0:00:04]} 18. h4 {[%emt 0:00:12]} Bd7 {[%emt 0:00:14]} 19. a3 {[%emt 0:00:02]} Ne6 20. Nxe6 {[%emt 0:00:05]} Bxe6 {[%emt 0:00:14]} 21. Ne2 {[%emt 0:00:08]} a4 {[%emt 0:00:14]} 22. b4 {[%emt 0:00:12]} Bd7 {[%emt 0:00:17]} 23. Nc3 {[%emt 0:00:07]} Be6 {[%emt 0:00:43]} 24. Bf1 {[%emt 0:00:18]} Bg4 {[%emt 0:00:11]} 25. Be2 {[%emt 0:00:14]} Bxe2 {[%emt 0:00:08]} 26. Rxe2 {[%emt 0:00:04]} Qe5 {[%emt 0:00:07]} 27. Rd3 {[%emt 0:00:24]} b5 {[%emt 0:00:28]} 28. cxb5 {[%emt 0:00:03]} cxb5 {[%emt 0:00:00]} 29. Nd5 {[%emt 0:00:03]} Rac8 {[%emt 0:00:04]} 30. Qd1 {[%emt 0:00:12]} Rc4 {[%emt 0:00:15]} 31. Ne3 {[%emt 0:00:40]} Rxe4 {[%emt 0:00:13]} 32. Rxd6 {[%emt 0:00:12]} Rd4 {[%emt 0:00:07]} 33. Rxd4 Qxd4 {[%emt 0:00:01]} 34. Rd2 {[%emt 0:00:36]} Qa1 {[%emt 0:00:31]} 35. Qxa1 Bxa1 {[%emt 0:00:02]} 36. Nd5 {[%emt 0:00:29]} Re1+ {[%emt 0:00:10]} 37. Kg2 {[%emt 0:00:01]} Rc1 {[%emt 0:00:03]} 38. Re2 {[%emt 0:00:08]} Kg7 {[%emt 0:00:03]} 39. Kf3 {[%emt 0:00:07]} Bd4 {[%emt 0:00:06]} 40. Ke4 {[%emt 0:00:07]} Ba7 {[%emt 0:00:17]} 41. f4 {[%emt 0:00:21]} Ra1 {[%emt 0:00:03]} 42. Nc3 {[%emt 0:00:03]} Bb6 {[%emt 0:00:24]} 43. Nxb5 {[%emt 0:00:02]} Rc1 {[%emt 0:00:03]} 44. Rd2 {[%emt 0:00:04]} Rc4+ {[%emt 0:00:02]} 45. Kd5 {[%emt 0:00:02]} Rc1 {[%emt 0:00:02]} 46. Re2 {[%emt 0:00:04]} Kf8 {[%emt 0:00:04]} 47. Nd6 {[%emt 0:00:03]} Kg7 {[%emt 0:00:06]} 48. Re7 {[%emt 0:00:02]} Bf2 49. Rxf7+ {[%emt 0:00:01]} Kg8 {[%emt 0:00:03]} 50. Rb7 {[%emt 0:00:01]} Bxg3 {[%emt 0:00:04]} 51. Ra7 {[%emt 0:00:05]} Bxf4 52. Nc4 {[%emt 0:00:01]} Rd1+ {[%emt 0:00:02]} 53. Kc5 {[%emt 0:00:01]} Bg3 {[%emt 0:00:05]} 54. Ra6 {[%emt 0:00:02]} Kg7 {[%emt 0:00:01]} 55. Rxa4 {[%emt 0:00:02]} Bxh4 {[%emt 0:00:01]} 56. b5 {[%emt 0:00:02]} Bf2+ {[%emt 0:00:01]} 57. Kc6 {[%emt 0:00:01]} Rb1 {[%emt 0:00:02]} 58. b6 h4 {[%emt 0:00:02]} 59. b7 {[%emt 0:00:02]} Bg3 {[%emt 0:00:01]} 60. Ne3 {[%emt 0:00:03]} h3 {[%emt 0:00:02]} 61. Ra7 {[%emt 0:00:03]} Kh6 {[%emt 0:00:01]} 62. Ng4+ {[%emt 0:00:03]} Kg5 {[%emt 0:00:01]} 63. Ne3 {[%emt 0:00:02]} h2 {[%emt 0:00:01]} 64. Ra5+ {[%emt 0:00:04]} Kf6 {[%emt 0:00:10]} 65. Ng4+ {[%emt 0:00:03]} Ke6 {[%emt 0:00:16]} 66. Nxh2 {[%emt 0:00:01]} Bxh2 67. Ra4 g5 {[%emt 0:00:07]} 68. Rg4 {[%emt 0:00:04]} Kf5 {[%emt 0:00:01]} 69. Rg2 {[%emt 0:00:01]} Bf4 {[%emt 0:00:04]} 70. a4 {[%emt 0:00:02]} Ra1 {[%emt 0:00:03]} 71. Kb5 {[%emt 0:00:01]} Rb1+ {[%emt 0:00:02]} 72. Kc6 {[%emt 0:00:02]} g4 {[%emt 0:00:00]} 73. a5 {[%emt 0:00:01]} Rc1+ {[%emt 0:00:03]} 74. Kb6 {[%emt 0:00:01]} Rb1+ {[%emt 0:00:01]} 75. Kc6 {[%emt 0:00:04]} Ra1 {[%emt 0:00:00]} 76. Kb6 {[%emt 0:00:01]} Be3+ {[%emt 0:00:01]} 77. Kb5 {[%emt 0:00:01]} Bf4 {[%emt 0:00:08]} 78. Rf2 {[%emt 0:00:03]} Rb1+ {[%emt 0:00:02]} 79. Kc6 {[%emt 0:00:00]} g3 {[%emt 0:00:01]} 80. Rg2 {[%emt 0:00:04]} Kg4 {[%emt 0:00:04]} 81. a6 {[%emt 0:00:00]} Kf3 {[%emt 0:00:02]} 82. Ra2 {[%emt 0:00:03]} Be3 {[%emt 0:00:10]} 83. Ra3 {[%emt 0:00:04]} g2 {[%emt 0:00:02]} 84. Rxe3+ {[%emt 0:00:03]} Kxe3 {[%emt 0:00:02]} 85. a7 {[%emt 0:00:01]} g1=Q {[%emt 0:00:01]} 86. a8=Q {[%emt 0:00:03]} Qg6+ {[%emt 0:00:01]} 87. Kc7 {[%emt 0:00:02]} Qf7+ {[%emt 0:00:02]} 88. Kc6 {[%emt 0:00:01]} Rc1+ {[%emt 0:00:01]} 89. Kb6 {[%emt 0:00:01]} Qe6+ {[%emt 0:00:01]} 90. Kb5 {[%emt 0:00:02]} Rb1+ {[%emt 0:00:01]} 91. Kc5 {[%emt 0:00:01]} Qe5+ {[%emt 0:00:01]} 92. Kc6 {[%emt 0:00:01]} Qe4+ {[%emt 0:00:01]} 93. Kc7 {[%emt 0:00:00]} Rc1+ {[%emt 0:00:01]} 94. Kd7 {[%emt 0:00:01]} Qd5+ {[%emt 0:00:01]} 95. Ke7 {[%emt 0:00:02]} Rc7+ {[%emt 0:00:01]} 96. Ke8 {[%emt 0:00:01]} Qf7+ {[%emt 0:00:01]} 97. Kd8 {[%emt 0:00:01]} Qd7# {[%emt 0:00:00]} 0-1

[Event "3rd FIDE WCCC Blitz U12 2019"]
[Site "Minsk"]
[Date "2019.08.18"]
[Round "8.3"]
[White "Navumenka, Mikhei"]
[Black "Khubukshanov, Erdem"]
[Result "0-1"]
[ECO "D30"]
[WhiteElo "2148"]
[BlackElo "2257"]
[Annotator "ChessBase"]
[PlyCount "90"]
[EventDate "2019.08.18"]
[EventType "swiss"]
[EventCountry "BLR"]
[SourceTitle "playchess.com"]
[Source "ChessBase"]
[SourceQuality "1"]
[TimeControl "300+2"]

1. d4 {[%emt 0:00:00]} d5 {[%emt 0:00:00]} 2. c4 {[%emt 0:00:00]} e6 {[%emt 0:00:00]} 3. Nf3 {[%emt 0:00:00]} c6 {[%emt 0:00:00]} 4. g3 {[%emt 0:00:01]} dxc4 {[%emt 0:00:01]} 5. Bg2 {[%emt 0:00:01]} Nd7 {[%emt 0:00:01]} 6. O-O {[%emt 0:00:01]} Ngf6 7. a4 Be7 {[%emt 0:00:03]} 8. Na3 {[%emt 0:00:02]} Bxa3 {[%emt 0:00:26]} 9. Rxa3 {[%emt 0:00:04]} O-O {[%emt 0:00:03]} 10. b3 {[%emt 0:00:06]} cxb3 {[%emt 0:00:04]} 11. Rxb3 {[%emt 0:00:01]} Nb6 {[%emt 0:00:09]} 12. Ba3 {[%emt 0:00:02]} Re8 {[%emt 0:00:02]} 13. Rb1 {[%emt 0:00:14]} Nc4 {[%emt 0:00:23]} 14. Bb4 {[%emt 0:00:10]} a5 {[%emt 0:00:04]} 15. Bc3 {[%emt 0:00:05]} Nd5 {[%emt 0:00:22]} 16. Be1 {[%emt 0:00:04]} Nd6 {[%emt 0:00:30]} 17. Ne5 {[%emt 0:00:08]} f6 {[%emt 0:00:09]} 18. Nd3 {[%emt 0:00:03]} Nc7 {[%emt 0:00:30]} 19. e4 {[%emt 0:00:07]} Nf7 {[%emt 0:00:13]} 20. Bc3 {[%emt 0:00:05]} b5 {[%emt 0:00:02]} 21. Nc5 {[%emt 0:00:04]} b4 {[%emt 0:00:06]} 22. Bb2 {[%emt 0:00:01]} Na6 {[%emt 0:00:02]} 23. Rc1 {[%emt 0:00:13]} Nxc5 {[%emt 0:00:08]} 24. Rxc5 {[%emt 0:00:03]} Bb7 {[%emt 0:00:01]} 25. Qb3 {[%emt 0:00:28]} Qe7 {[%emt 0:00:16]} 26. Rd1 {[%emt 0:00:06]} e5 {[%emt 0:00:12]} 27. Rdc1 {[%emt 0:00:47]} exd4 {[%emt 0:00:05]} 28. Bxd4 {[%emt 0:00:02]} Red8 {[%emt 0:00:03]} 29. Ba1 {[%emt 0:00:19]} Kh8 {[%emt 0:00:27]} 30. f4 Rd2 {[%emt 0:00:19]} 31. Qe3 {[%emt 0:00:22]} Rad8 {[%emt 0:00:05]} 32. h3 {[%emt 0:01:16]} R8d3 {[%emt 0:00:29]} 33. Qe1 {[%emt 0:00:02]} Ra2 {[%emt 0:00:28]} 34. R5c2 {[%emt 0:00:17]} Rxc2 35. Rxc2 {[%emt 0:00:01]} c5 {[%emt 0:00:09]} 36. e5 {[%emt 0:00:19]} Bxg2 {[%emt 0:00:02]} 37. Kxg2 {[%emt 0:00:04]} Qb7+ {[%emt 0:00:03]} 38. Kh2 {[%emt 0:00:06]} fxe5 {[%emt 0:00:03]} 39. Re2 {[%emt 0:00:02]} h6 {[%emt 0:00:10]} 40. fxe5 {[%emt 0:00:09]} Ng5 {[%emt 0:00:00]} 41. Rf2 {[%emt 0:00:14]} Nf3+ {[%emt 0:00:02]} 42. Rxf3 {[%emt 0:00:01]} Qxf3 43. e6 {[%emt 0:00:02]} Rd1 {[%emt 0:00:04]} 44. Bxg7+ {[%emt 0:00:04]} Kxg7 45. Qe5+ Kg6 {[%emt 0:00:05]} 0-1

[Event "3rd FIDE WCCC Blitz U12 2019"]
[Site "Minsk"]
[Date "2019.08.18"]
[Round "8.4"]
[White "Pidluznij, Gleb"]
[Black "Nemsadze, Daviti"]
[Result "1-0"]
[ECO "A42"]
[WhiteElo "1925"]
[BlackElo "1773"]
[Annotator "NA"]
[PlyCount "79"]
[EventDate "2019.08.18"]
[EventType "swiss"]
[EventCountry "BLR"]
[SourceTitle "playchess.com"]
[Source "ChessBase"]
[SourceQuality "1"]
[TimeControl "300+2"]

1. d4 {[%emt 0:00:00]} g6 {[%emt 0:00:00]} 2. c4 {[%emt 0:00:02]} Bg7 {[%emt 0:00:00]} 3. Nc3 {[%emt 0:00:01]} d6 {[%emt 0:00:01]} 4. e4 {[%emt 0:00:01]} Nc6 {[%emt 0:00:01]} 5. Nf3 {[%emt 0:00:08]} e5 {[%emt 0:00:01]} 6. d5 {[%emt 0:00:02]} Nd4 {[%emt 0:00:01]} 7. Be2 {[%emt 0:00:22]} c5 {[%emt 0:00:48]} 8. dxc6 {[%emt 0:00:15]} bxc6 {[%emt 0:00:01]} 9. Be3 {[%emt 0:00:10]} c5 {[%emt 0:00:01]} 10. O-O {[%emt 0:00:06]} Ne7 {[%emt 0:00:07]} 11. Nd5 {[%emt 0:00:05]} Nxd5 {[%emt 0:00:03]} 12. cxd5 {[%emt 0:00:04]} O-O {[%emt 0:00:02]} 13. Nd2 {[%emt 0:00:12]} f5 {[%emt 0:00:14]} 14. f3 {[%emt 0:00:12]} Qe7 {[%emt 0:00:19]} 15. Nc4 {[%emt 0:00:07]} Bd7 16. b3 {[%emt 0:00:24]} Rfb8 {[%emt 0:01:09]} 17. Bd2 {[%emt 0:00:40]} Bb5 {[%emt 0:00:23]} 18. Bd3 {[%emt 0:00:20]} f4 {[%emt 0:00:08]} 19. Rb1 {[%emt 0:00:32]} Bf8 20. Nb2 {[%emt 0:00:16]} Bxd3 {[%emt 0:00:40]} 21. Nxd3 {[%emt 0:00:01]} a5 {[%emt 0:00:01]} 22. Nb2 {[%emt 0:00:27]} Qa7 {[%emt 0:00:06]} 23. Kh1 {[%emt 0:00:20]} Be7 {[%emt 0:00:18]} 24. Rc1 {[%emt 0:00:13]} Bd8 {[%emt 0:00:23]} 25. Rc4 {[%emt 0:00:03]} Qd7 {[%emt 0:00:02]} 26. Ra4 {[%emt 0:00:08]} Qb5 {[%emt 0:00:04]} 27. Bc3 {[%emt 0:00:10]} Bc7 {[%emt 0:00:10]} 28. Nc4 {[%emt 0:00:07]} Kf7 {[%emt 0:00:13]} 29. Qd2 {[%emt 0:00:03]} Ra6 {[%emt 0:00:12]} 30. Rc1 {[%emt 0:00:14]} Rba8 {[%emt 0:00:06]} 31. Bxd4 {[%emt 0:00:01]} cxd4 {[%emt 0:00:03]} 32. Nxe5+ {[%emt 0:00:03]} dxe5 {[%emt 0:00:05]} 33. Rxc7+ {[%emt 0:00:01]} Kf6 {[%emt 0:00:01]} 34. Rcc4 {[%emt 0:00:02]} Rd8 {[%emt 0:00:05]} 35. Qe1 {[%emt 0:00:04]} Rb8 {[%emt 0:00:02]} 36. Qh4+ {[%emt 0:00:01]} Kf7 {[%emt 0:00:09]} 37. Qxh7+ {[%emt 0:00:02]} Kf6 {[%emt 0:00:01]} 38. Qh4+ {[%emt 0:00:03]} Kf7 {[%emt 0:00:01]} 39. Rc7+ {[%emt 0:00:02]} Kf8 {[%emt 0:00:06]} 40. Qh8# {[%emt 0:00:02]} 1-0

[Event "3rd FIDE WCCC Blitz U12 2019"]
[Site "Minsk"]
[Date "2019.08.18"]
[Round "8.5"]
[White "Hoang, Minh Hieu"]
[Black "Matviienko, Mykhailo"]
[Result "0-1"]
[ECO "E16"]
[WhiteElo "1685"]
[BlackElo "1755"]
[Annotator "NA"]
[PlyCount "119"]
[EventDate "2019.08.18"]
[EventType "swiss"]
[EventCountry "BLR"]
[SourceTitle "playchess.com"]
[Source "ChessBase"]
[SourceQuality "1"]
[TimeControl "300+2"]

1. d4 {[%emt 0:00:00]} Nf6 {[%emt 0:00:00]} 2. c4 {[%emt 0:00:00]} e6 {[%emt 0:00:00]} 3. Nf3 {[%emt 0:00:01]} b6 {[%emt 0:00:00]} 4. g3 {[%emt 0:00:00]} Bb7 {[%emt 0:00:00]} 5. Bg2 {[%emt 0:00:01]} Bb4+ {[%emt 0:00:01]} 6. Bd2 {[%emt 0:00:01]} Be7 {[%emt 0:00:00]} 7. O-O {[%emt 0:00:01]} O-O {[%emt 0:00:01]} 8. Nc3 {[%emt 0:00:01]} d5 {[%emt 0:00:01]} 9. Ne5 {[%emt 0:00:09]} c6 {[%emt 0:00:07]} 10. Bf4 {[%emt 0:00:03]} Nfd7 {[%emt 0:00:02]} 11. Rc1 {[%emt 0:00:06]} Nxe5 12. Bxe5 {[%emt 0:00:09]} Nd7 {[%emt 0:00:03]} 13. Bf4 {[%emt 0:00:01]} Nf6 {[%emt 0:00:02]} 14. cxd5 {[%emt 0:00:04]} cxd5 {[%emt 0:00:02]} 15. Qb3 {[%emt 0:00:24]} Qd7 {[%emt 0:00:40]} 16. Rc2 {[%emt 0:00:18]} Rfc8 {[%emt 0:00:06]} 17. Rfc1 {[%emt 0:00:01]} Ba6 {[%emt 0:00:11]} 18. Qa4 {[%emt 0:00:49]} Qxa4 19. Nxa4 {[%emt 0:00:00]} Rxc2 {[%emt 0:00:05]} 20. Rxc2 {[%emt 0:00:01]} Rc8 {[%emt 0:00:22]} 21. Rxc8+ {[%emt 0:00:01]} Bxc8 {[%emt 0:00:01]} 22. Bb8 {[%emt 0:00:01]} b5 {[%emt 0:00:12]} 23. Nc5 {[%emt 0:00:01]} a6 {[%emt 0:00:33]} 24. b4 {[%emt 0:00:06]} Nd7 {[%emt 0:00:05]} 25. Bc7 {[%emt 0:00:08]} Nxc5 26. bxc5 {[%emt 0:00:04]} Bb7 {[%emt 0:00:11]} 27. f3 {[%emt 0:00:14]} Bf6 {[%emt 0:00:05]} 28. e3 {[%emt 0:00:01]} Kf8 {[%emt 0:00:04]} 29. Kf2 {[%emt 0:00:00]} Ke8 {[%emt 0:00:00]} 30. Ke2 {[%emt 0:00:02]} Kd7 {[%emt 0:00:03]} 31. Bd6 {[%emt 0:00:02]} Bd8 {[%emt 0:00:03]} 32. Kd3 {[%emt 0:00:02]} f5 {[%emt 0:00:13]} 33. e4 g6 {[%emt 0:00:01]} 34. exf5 {[%emt 0:00:10]} exf5 {[%emt 0:00:04]} 35. h4 {[%emt 0:00:03]} a5 {[%emt 0:00:18]} 36. Ke3 {[%emt 0:00:06]} Ke6 {[%emt 0:00:32]} 37. Bf1 {[%emt 0:00:04]} Bc6 {[%emt 0:00:03]} 38. Bd3 {[%emt 0:00:15]} Bf6 {[%emt 0:00:01]} 39. Bc7 {[%emt 0:00:12]} a4 {[%emt 0:00:07]} 40. a3 {[%emt 0:00:00]} Kd7 {[%emt 0:00:06]} 41. Be5 {[%emt 0:00:10]} Bd8 {[%emt 0:00:04]} 42. h5 {[%emt 0:00:02]} Ke6 {[%emt 0:00:08]} 43. g4 {[%emt 0:00:08]} Bg5+ {[%emt 0:00:25]} 44. Bf4 {[%emt 0:00:20]} Bd8 {[%emt 0:00:17]} 45. Be5 {[%emt 0:00:11]} Ba5 {[%emt 0:00:11]} 46. Bg3 {[%emt 0:01:33]} Bc3 {[%emt 0:00:09]} 47. Bc2 {[%emt 0:00:06]} Bb2 {[%emt 0:00:01]} 48. Be1 {[%emt 0:00:06]} Bxa3 {[%emt 0:00:01]} 49. Bd2 {[%emt 0:00:01]} b4 {[%emt 0:00:11]} 50. gxf5+ {[%emt 0:00:01]} gxf5 {[%emt 0:00:02]} 51. Kf4 {[%emt 0:00:01]} b3 {[%emt 0:00:06]} 52. Bxf5+ {[%emt 0:00:01]} Ke7 {[%emt 0:00:01]} 53. Bxh7 {[%emt 0:00:02]} Bb2 {[%emt 0:00:03]} 54. Bb4 {[%emt 0:00:02]} Bxd4 {[%emt 0:00:08]} 55. Bb1 {[%emt 0:00:02]} Bb2 {[%emt 0:00:03]} 56. Kf5 {[%emt 0:00:06]} a3 57. Bxa3 {[%emt 0:00:01]} Bxa3 {[%emt 0:00:03]} 58. h6 {[%emt 0:00:03]} Bb2 {[%emt 0:00:04]} 59. Kg6 {[%emt 0:00:03]} Be8+ {[%emt 0:00:11]} 60. Kg5 {[%emt 0:00:01]} 0-1

[Event "3rd FIDE WCCC Blitz U12 2019"]
[Site "Minsk"]
[Date "2019.08.18"]
[Round "9.1"]
[White "Mochalov, Dmitriy"]
[Black "Strybuk, Artsiom I"]
[Result "1/2-1/2"]
[ECO "C67"]
[WhiteElo "1852"]
[BlackElo "2200"]
[Annotator "ChessBase"]
[PlyCount "76"]
[EventDate "2019.08.18"]
[EventType "swiss"]
[EventCountry "BLR"]
[SourceTitle "playchess.com"]
[Source "ChessBase"]
[SourceQuality "1"]
[TimeControl "300+2"]

1. e4 {[%emt 0:00:01]} e5 {[%emt 0:00:00]} 2. Nf3 {[%emt 0:00:01]} Nc6 {[%emt 0:00:00]} 3. Bb5 {[%emt 0:00:00]} Nf6 {[%emt 0:00:00]} 4. O-O {[%emt 0:00:03]} Nxe4 {[%emt 0:00:01]} 5. d4 {[%emt 0:00:01]} Nd6 {[%emt 0:00:01]} 6. Bxc6 {[%emt 0:00:01]} dxc6 {[%emt 0:00:02]} 7. dxe5 {[%emt 0:00:01]} Nf5 {[%emt 0:00:01]} 8. Qxd8+ Kxd8 {[%emt 0:00:01]} 9. c4 {[%emt 0:00:04]} Be7 {[%emt 0:00:01]} 10. b3 {[%emt 0:00:02]} Ke8 {[%emt 0:00:01]} 11. Bb2 {[%emt 0:00:01]} Be6 {[%emt 0:00:02]} 12. Nc3 {[%emt 0:00:02]} Rd8 {[%emt 0:00:16]} 13. Rad1 {[%emt 0:00:01]} h6 {[%emt 0:00:05]} 14. Ne4 {[%emt 0:00:07]} b6 {[%emt 0:00:22]} 15. h3 {[%emt 0:00:03]} h5 {[%emt 0:00:24]} 16. Kh1 {[%emt 0:00:04]} Rh6 {[%emt 0:00:07]} 17. Rxd8+ {[%emt 0:00:03]} Bxd8 {[%emt 0:00:02]} 18. Rd1 {[%emt 0:00:10]} Be7 {[%emt 0:00:04]} 19. Rd3 {[%emt 0:00:25]} c5 {[%emt 0:01:14]} 20. Nc3 {[%emt 0:00:22]} a6 {[%emt 0:00:09]} 21. Nd5 {[%emt 0:00:08]} Bd8 {[%emt 0:00:03]} 22. Nf4 {[%emt 0:00:24]} Ne7 {[%emt 0:00:45]} 23. Nxe6 {[%emt 0:00:02]} fxe6 {[%emt 0:00:18]} 24. Bc1 {[%emt 0:00:03]} Rh8 {[%emt 0:00:34]} 25. Bg5 {[%emt 0:00:02]} Nc6 {[%emt 0:00:09]} 26. Bxd8 {[%emt 0:00:04]} Nxd8 {[%emt 0:00:01]} 27. Ng5 {[%emt 0:00:06]} Ke7 {[%emt 0:00:07]} 28. f4 {[%emt 0:00:12]} Rf8 {[%emt 0:00:08]} 29. g3 {[%emt 0:00:18]} h4 {[%emt 0:00:03]} 30. Kg2 {[%emt 0:00:01]} hxg3 {[%emt 0:00:01]} 31. Kxg3 {[%emt 0:00:01]} Nc6 {[%emt 0:00:01]} 32. Nf3 {[%emt 0:00:07]} Rh8 {[%emt 0:00:20]} 33. a3 {[%emt 0:00:11]} Rb8 {[%emt 0:00:06]} 34. Kg4 {[%emt 0:00:35]} Na5 {[%emt 0:00:22]} 35. Rc3 {[%emt 0:00:22]} Nc6 {[%emt 0:00:04]} 36. Rd3 {[%emt 0:00:01]} Na5 {[%emt 0:00:01]} 37. Rc3 {[%emt 0:00:26]} Nc6 {[%emt 0:00:01]} 38. Rd3 {[%emt 0:00:04]} Na5 {[%emt 0:00:01]} 1/2-1/2